[Event "Late-Titled-Tuesday-Blitz-March-12-2024"]
[Site "Chess.com"]
[Date "2024.03.12"]
[Round "2"]
[White "MyDream003"]
[Black "waltereador"]
[Result "1-0"]
[WhiteElo "2759"]
[BlackElo "2330"]
[TimeControl "180+1"]
[EndTime "14:19:36 PDT"]
[Termination "MyDream003 won by checkmate"]

1. Nf3 {[%clk 0:02:59.9]} 1... Nf6 {[%clk 0:02:55.4]} 2. b3 {[%clk 0:02:59.3]}
2... d5 {[%clk 0:02:55.5]} 3. Bb2 {[%clk 0:02:59.4]} 3... c5 {[%clk 0:02:54.1]}
4. g3 {[%clk 0:02:58.6]} 4... Nc6 {[%clk 0:02:54.6]} 5. Bg2 {[%clk 0:02:58.7]}
5... e6 {[%clk 0:02:55.3]} 6. O-O {[%clk 0:02:58.4]} 6... Be7 {[%clk 0:02:56]}
7. e3 {[%clk 0:02:57.5]} 7... O-O {[%clk 0:02:56.4]} 8. d4 {[%clk 0:02:54.8]}
8... cxd4 {[%clk 0:02:55.8]} 9. Nxd4 {[%clk 0:02:54.4]} 9... Bd7 {[%clk
0:02:55.9]} 10. Nd2 {[%clk 0:02:54.4]} 10... Nxd4 {[%clk 0:02:54.3]} 11. Bxd4
{[%clk 0:02:55.2]} 11... b6 {[%clk 0:02:52.6]} 12. c4 {[%clk 0:02:42.8]} 12...
Rc8 {[%clk 0:02:51.6]} 13. a4 {[%clk 0:02:23.9]} 13... Bc5 {[%clk 0:02:47.1]}
14. Bxc5 {[%clk 0:02:19.3]} 14... Rxc5 {[%clk 0:02:44.6]} 15. cxd5 {[%clk
0:02:19.3]} 15... Nxd5 {[%clk 0:02:42.8]} 16. Nc4 {[%clk 0:02:16.8]} 16... Bc6
{[%clk 0:02:37]} 17. Rc1 {[%clk 0:02:07.5]} 17... Ba8 {[%clk 0:02:36.6]} 18. Qe2
{[%clk 0:02:03.8]} 18... Nf6 {[%clk 0:02:36.3]} 19. Rfd1 {[%clk 0:02:02.4]}
19... Qc7 {[%clk 0:02:35.7]} 20. Bxa8 {[%clk 0:02:00]} 20... Rxa8 {[%clk
0:02:36.6]} 21. b4 {[%clk 0:02:00.2]} 21... Rd5 {[%clk 0:02:34.2]} 22. e4 {[%clk
0:01:39.5]} 22... Rxd1+ {[%clk 0:02:33.2]} 23. Rxd1 {[%clk 0:01:40.4]} 23... Rd8
{[%clk 0:02:33.1]} 24. Rxd8+ {[%clk 0:01:37]} 24... Qxd8 {[%clk 0:02:32.7]} 25.
e5 {[%clk 0:01:31.1]} 25... Nd5 {[%clk 0:02:32]} 26. Qd2 {[%clk 0:01:31.4]}
26... Qd7 {[%clk 0:02:27.6]} 27. b5 {[%clk 0:01:30.1]} 27... Qc7 {[%clk
0:02:27.3]} 28. Nd6 {[%clk 0:01:29.9]} 28... h6 {[%clk 0:02:23.7]} 29. h4 {[%clk
0:01:28.2]} 29... Qc5 {[%clk 0:02:19.1]} 30. Qd3 {[%clk 0:01:18.1]} 30... Qb4
{[%clk 0:02:04.2]} 31. Qf3 {[%clk 0:01:13.6]} 31... f5 {[%clk 0:01:58.5]} 32.
Kg2 {[%clk 0:01:00.1]} 32... Qxa4 {[%clk 0:01:50.4]} 33. Qh5 {[%clk 0:00:59.9]}
33... Qg4 {[%clk 0:01:18]} 34. Qxg4 {[%clk 0:00:39.6]} 34... fxg4 {[%clk
0:01:18.9]} 35. Nc8 {[%clk 0:00:39.6]} 35... Nc3 {[%clk 0:01:00.4]} 36. Nxa7
{[%clk 0:00:39.3]} 36... Kf7 {[%clk 0:01:00.3]} 37. f3 {[%clk 0:00:36.8]} 37...
h5 {[%clk 0:00:55.9]} 38. fxg4 {[%clk 0:00:33.8]} 38... hxg4 {[%clk 0:00:55.6]}
39. Kf2 {[%clk 0:00:33.5]} 39... Kg6 {[%clk 0:00:55.5]} 40. Nc8 {[%clk
0:00:22.5]} 40... Nxb5 {[%clk 0:00:54.3]} 41. Nxb6 {[%clk 0:00:22.6]} 41... Kf5
{[%clk 0:00:52.7]} 42. Nd7 {[%clk 0:00:23.2]} 42... Nc3 {[%clk 0:00:49.2]} 43.
Kg2 {[%clk 0:00:20.2]} 43... Nd1 {[%clk 0:00:35.8]} 44. Kf1 {[%clk 0:00:18.6]}
44... Ne3+ {[%clk 0:00:35.9]} 45. Kf2 {[%clk 0:00:18.6]} 45... Nc4 {[%clk
0:00:35.9]} 46. Nc5 {[%clk 0:00:15.6]} 46... Nxe5 {[%clk 0:00:35]} 47. Nb7
{[%clk 0:00:15.6]} 47... Nc4 {[%clk 0:00:33.7]} 48. Nc5 {[%clk 0:00:15.3]} 48...
g6 {[%clk 0:00:29.9]} 49. Nb3 {[%clk 0:00:14.7]} 49... Ne5 {[%clk 0:00:29.7]}
50. Nd4+ {[%clk 0:00:14.9]} 50... Kf6 {[%clk 0:00:30.1]} 51. Ke3 {[%clk
0:00:15.5]} 51... Nd7 {[%clk 0:00:24.7]} 52. Nc6 {[%clk 0:00:14.6]} 52... e5
{[%clk 0:00:24.5]} 53. Ke4 {[%clk 0:00:14.1]} 53... Ke6 {[%clk 0:00:22.6]} 54.
Nd8+ {[%clk 0:00:14.5]} 54... Ke7 {[%clk 0:00:21.8]} 55. Nc6+ {[%clk 0:00:14.8]}
55... Kd6 {[%clk 0:00:22]} 56. Nd8 {[%clk 0:00:15.1]} 56... Nf6+ {[%clk
0:00:21.9]} 57. Ke3 {[%clk 0:00:15.7]} 57... Kd5 {[%clk 0:00:21.3]} 58. Nf7
{[%clk 0:00:15.4]} 58... Ke6 {[%clk 0:00:20.8]} 59. Nh6 {[%clk 0:00:11.9]} 59...
Nd5+ {[%clk 0:00:19.5]} 60. Ke4 {[%clk 0:00:11.8]} 60... Nc3+ {[%clk 0:00:20]}
61. Ke3 {[%clk 0:00:12.1]} 61... Kf6 {[%clk 0:00:19.6]} 62. Nxg4+ {[%clk
0:00:12.1]} 62... Kf5 {[%clk 0:00:20.3]} 63. Nf2 {[%clk 0:00:12.1]} 63... g5
{[%clk 0:00:20.7]} 64. g4+ {[%clk 0:00:12.2]} 64... Kf6 {[%clk 0:00:20.4]} 65.
h5 {[%clk 0:00:13.1]} 65... Nd5+ {[%clk 0:00:20.2]} 66. Kf3 {[%clk 0:00:13.2]}
66... Nf4 {[%clk 0:00:19.9]} 67. Ne4+ {[%clk 0:00:13.4]} 67... Kg7 {[%clk
0:00:19.3]} 68. Nxg5 {[%clk 0:00:14.3]} 68... Kh6 {[%clk 0:00:19.4]} 69. Nf7+
{[%clk 0:00:14.7]} 69... Kg7 {[%clk 0:00:19]} 70. Nxe5 {[%clk 0:00:15.2]} 70...
Ne6 {[%clk 0:00:18.7]} 71. Kg3 {[%clk 0:00:14.9]} 71... Kf6 {[%clk 0:00:19.1]}
72. Nf3 {[%clk 0:00:15]} 72... Ng7 {[%clk 0:00:15.7]} 73. Kh4 {[%clk 0:00:14.7]}
73... Ne6 {[%clk 0:00:15.8]} 74. g5+ {[%clk 0:00:12.6]} 74... Kf5 {[%clk
0:00:16]} 75. h6 {[%clk 0:00:12.9]} 75... Kg6 {[%clk 0:00:15.7]} 76. Ne5+ {[%clk
0:00:13.2]} 76... Kh7 {[%clk 0:00:16]} 77. Kh5 {[%clk 0:00:12.6]} 77... Nf4+
{[%clk 0:00:16.2]} 78. Kg4 {[%clk 0:00:13]} 78... Ne6 {[%clk 0:00:16.5]} 79. Kf5
{[%clk 0:00:11.5]} 79... Nd4+ {[%clk 0:00:16.7]} 80. Kf6 {[%clk 0:00:12]} 80...
Nb5 {[%clk 0:00:12.6]} 81. Ng4 {[%clk 0:00:06.9]} 81... Nd6 {[%clk 0:00:10.6]}
82. g6+ {[%clk 0:00:07.8]} 82... Kh8 {[%clk 0:00:10.9]} 83. Ne5 {[%clk
0:00:04.2]} 83... Ne4+ {[%clk 0:00:11]} 84. Kf5 {[%clk 0:00:04.3]} 84... Nd6+
{[%clk 0:00:11.1]} 85. Ke6 {[%clk 0:00:04.6]} 85... Ne4 {[%clk 0:00:11.1]} 86.
Nf7+ {[%clk 0:00:05.1]} 86... Kg8 {[%clk 0:00:11]} 87. h7+ {[%clk 0:00:06]}
87... Kg7 {[%clk 0:00:11.6]} 88. h8=Q+ {[%clk 0:00:06.8]} 88... Kxg6 {[%clk
0:00:12.3]} 89. Qh6# {[%clk 0:00:07.5]} 1-0

[Event "Late-Titled-Tuesday-Blitz-March-12-2024"]
[Site "Chess.com"]
[Date "2024.03.12"]
[Round "2"]
[White "HanSchut"]
[Black "As0nchess"]
[Result "0-1"]
[WhiteElo "2335"]
[BlackElo "2555"]
[TimeControl "180+1"]
[EndTime "14:19:38 PDT"]
[Termination "As0nchess won on time"]

1. e4 {[%clk 0:02:58.8]} 1... d5 {[%clk 0:03:00.2]} 2. exd5 {[%clk 0:02:58.6]}
2... Qxd5 {[%clk 0:03:01.1]} 3. Nc3 {[%clk 0:02:59.2]} 3... Qa5 {[%clk
0:03:01.6]} 4. d4 {[%clk 0:02:59.8]} 4... Nf6 {[%clk 0:03:01.5]} 5. Bd2 {[%clk
0:03:00.3]} 5... Bg4 {[%clk 0:02:59.5]} 6. f3 {[%clk 0:03:00.3]} 6... Bd7 {[%clk
0:02:59.4]} 7. Bc4 {[%clk 0:03:00]} 7... e6 {[%clk 0:02:57.8]} 8. Nd5 {[%clk
0:02:55.5]} 8... Qa4 {[%clk 0:02:53.6]} 9. b3 {[%clk 0:02:49.9]} 9... Qc6 {[%clk
0:02:51.3]} 10. Nxf6+ {[%clk 0:02:26.6]} 10... gxf6 {[%clk 0:02:52.2]} 11. Qe2
{[%clk 0:02:19.3]} 11... Be7 {[%clk 0:02:45.8]} 12. d5 {[%clk 0:01:40.4]} 12...
exd5 {[%clk 0:02:44.5]} 13. Bb4 {[%clk 0:01:40.3]} 13... Qe6 {[%clk 0:02:25]}
14. Bxe7 {[%clk 0:01:34.5]} 14... Kxe7 {[%clk 0:01:47.4]} 15. Bxd5 {[%clk
0:01:32.5]} 15... Qxe2+ {[%clk 0:01:47.7]} 16. Nxe2 {[%clk 0:01:32.9]} 16... Bc6
{[%clk 0:01:46.4]} 17. Nf4 {[%clk 0:01:20.2]} 17... Nd7 {[%clk 0:01:37.9]} 18.
O-O-O {[%clk 0:01:15]} 18... Ne5 {[%clk 0:01:27.9]} 19. Rhe1 {[%clk 0:01:12.1]}
19... Kf8 {[%clk 0:01:20.3]} 20. Nh5 {[%clk 0:01:05.7]} 20... Rd8 {[%clk
0:01:05.5]} 21. Bxc6 {[%clk 0:01:03.8]} 21... Nxc6 {[%clk 0:01:03.2]} 22. Nxf6
{[%clk 0:00:54.2]} 22... Kg7 {[%clk 0:01:02.3]} 23. Nh5+ {[%clk 0:00:54.4]}
23... Kh6 {[%clk 0:01:01.9]} 24. g4 {[%clk 0:00:52.5]} 24... Kg5 {[%clk
0:00:59.1]} 25. Ng3 {[%clk 0:00:48.2]} 25... Kf4 {[%clk 0:00:56.5]} 26. Rf1
{[%clk 0:00:45]} 26... Rxd1+ {[%clk 0:00:54.7]} 27. Kxd1 {[%clk 0:00:45.5]}
27... Rd8+ {[%clk 0:00:51.5]} 28. Kc1 {[%clk 0:00:45.3]} 28... Nd4 {[%clk
0:00:47.3]} 29. Nh5+ {[%clk 0:00:44.1]} 29... Ke3 {[%clk 0:00:46.7]} 30. c3
{[%clk 0:00:37.7]} 30... Nxf3 {[%clk 0:00:44.5]} 31. h3 {[%clk 0:00:26.5]} 31...
Rd3 {[%clk 0:00:40.7]} 32. Kc2 {[%clk 0:00:19.2]} 32... Rd2+ {[%clk 0:00:40.1]}
33. Kb1 {[%clk 0:00:19.7]} 33... Ke2 {[%clk 0:00:33.8]} 34. Rc1 {[%clk
0:00:17.9]} 34... Ne5 {[%clk 0:00:28.1]} 35. Ng3+ {[%clk 0:00:17.8]} 35... Kf3
{[%clk 0:00:26.7]} 36. Nf5 {[%clk 0:00:18.2]} 36... Nd3 {[%clk 0:00:25.8]} 37.
Rf1+ {[%clk 0:00:08.8]} 37... Kg2 {[%clk 0:00:25.4]} 38. Ne3+ {[%clk 0:00:08.8]}
38... Kg3 {[%clk 0:00:14.4]} 39. Rxf7 {[%clk 0:00:07.1]} 39... Rb2+ {[%clk
0:00:15]} 40. Ka1 {[%clk 0:00:07.2]} 40... Re2 {[%clk 0:00:15.9]} 41. Nf5+
{[%clk 0:00:07.4]} 41... Kxh3 {[%clk 0:00:15.5]} 42. Kb1 {[%clk 0:00:08.3]}
42... Kxg4 {[%clk 0:00:13.2]} 43. Nd4 {[%clk 0:00:07.9]} 43... Rb2+ {[%clk
0:00:12.8]} 44. Ka1 {[%clk 0:00:07.7]} 44... Rh2 {[%clk 0:00:13.5]} 45. Kb1
{[%clk 0:00:08]} 45... c5 {[%clk 0:00:13.3]} 46. Ne6 {[%clk 0:00:07.6]} 46... b6
{[%clk 0:00:12.4]} 47. a4 {[%clk 0:00:07.2]} 47... h5 {[%clk 0:00:12.8]} 48. b4
{[%clk 0:00:07.3]} 48... cxb4 {[%clk 0:00:12.8]} 49. cxb4 {[%clk 0:00:08.2]}
49... h4 {[%clk 0:00:13]} 50. a5 {[%clk 0:00:08.1]} 50... bxa5 {[%clk
0:00:13.2]} 51. bxa5 {[%clk 0:00:08.4]} 51... a6 {[%clk 0:00:14.1]} 52. Nc7
{[%clk 0:00:07.1]} 52... Nc5 {[%clk 0:00:12.4]} 53. Rg7+ {[%clk 0:00:05.7]}
53... Kf5 {[%clk 0:00:12.3]} 54. Nd5 {[%clk 0:00:05.3]} 54... Ne4 {[%clk
0:00:10.8]} 55. Ne3+ {[%clk 0:00:05.1]} 55... Kf4 {[%clk 0:00:10.4]} 56. Nd5+
{[%clk 0:00:05.6]} 56... Ke5 {[%clk 0:00:10.9]} 57. Nc7 {[%clk 0:00:05.2]} 57...
Nc3+ {[%clk 0:00:11.5]} 58. Kc1 {[%clk 0:00:03.9]} 58... Na2+ {[%clk 0:00:12]}
59. Kd1 {[%clk 0:00:04.3]} 59... Nc3+ {[%clk 0:00:12.8]} 60. Ke1 {[%clk
0:00:05]} 60... Ra2 {[%clk 0:00:12.1]} 61. Nxa6 {[%clk 0:00:05.1]} 61... Rxa5
{[%clk 0:00:12.7]} 62. Nc7 {[%clk 0:00:05.7]} 62... Ra7 {[%clk 0:00:12.3]} 63.
Re7+ {[%clk 0:00:04.2]} 63... Kf5 {[%clk 0:00:10.2]} 64. Nd5 {[%clk 0:00:05.1]}
64... Ra1+ {[%clk 0:00:09.2]} 65. Kd2 {[%clk 0:00:05.8]} 65... Nxd5 {[%clk
0:00:09.9]} 66. Rh7 {[%clk 0:00:05.5]} 66... Nf6 {[%clk 0:00:10.5]} 67. Rxh4
{[%clk 0:00:05.3]} 67... Ra2+ {[%clk 0:00:11.1]} 68. Kc3 {[%clk 0:00:05.6]}
68... Ra3+ {[%clk 0:00:11.6]} 69. Kb2 {[%clk 0:00:06.5]} 69... Rf3 {[%clk
0:00:12.3]} 70. Rh2 {[%clk 0:00:05.9]} 70... Ne4 {[%clk 0:00:12.6]} 71. Rh5+
{[%clk 0:00:05.6]} 71... Kf4 {[%clk 0:00:12.8]} 72. Rh8 {[%clk 0:00:06.5]} 72...
Ke3 {[%clk 0:00:12.9]} 73. Re8 {[%clk 0:00:06.4]} 73... Rf5 {[%clk 0:00:11.2]}
74. Kb3 {[%clk 0:00:05.6]} 74... Rc5 {[%clk 0:00:11.8]} 75. Kb4 {[%clk
0:00:05.9]} 75... Rc7 {[%clk 0:00:12.5]} 76. Kb5 {[%clk 0:00:06.3]} 76... Kd4
{[%clk 0:00:12.4]} 77. Kb6 {[%clk 0:00:06.3]} 77... Rc1 {[%clk 0:00:12.8]} 78.
Rd8+ {[%clk 0:00:06.7]} 78... Ke5 {[%clk 0:00:13.1]} 79. Re8+ {[%clk 0:00:07.1]}
79... Kd5 {[%clk 0:00:13.8]} 80. Rd8+ {[%clk 0:00:07.5]} 80... Nd6 {[%clk
0:00:14.5]} 81. Ka5 {[%clk 0:00:07.2]} 81... Rb1 {[%clk 0:00:14.9]} 82. Ka4
{[%clk 0:00:06.2]} 82... Kc5 {[%clk 0:00:14.7]} 83. Ka3 {[%clk 0:00:06.5]} 83...
Rb7 {[%clk 0:00:13.5]} 84. Ka2 {[%clk 0:00:04.8]} 84... Nf5 {[%clk 0:00:12.8]}
85. Rc8+ {[%clk 0:00:04.7]} 85... Kd4 {[%clk 0:00:12.9]} 86. Rc1 {[%clk
0:00:04.6]} 86... Ne3 {[%clk 0:00:10.8]} 87. Ka3 {[%clk 0:00:04.6]} 87... Nc4+
{[%clk 0:00:10.6]} 88. Ka4 {[%clk 0:00:04.7]} 88... Kc5 {[%clk 0:00:11.2]} 0-1

[Event "Late-Titled-Tuesday-Blitz-March-12-2024"]
[Site "Chess.com"]
[Date "2024.03.12"]
[Round "2"]
[White "blank0923"]
[Black "KorolDimitriy75"]
[Result "1/2-1/2"]
[WhiteElo "2614"]
[BlackElo "2425"]
[TimeControl "180+1"]
[EndTime "14:19:42 PDT"]
[Termination "Game drawn by 50-move rule"]

1. Nf3 {[%clk 0:03:00.9]} 1... c5 {[%clk 0:03:00.2]} 2. g3 {[%clk 0:03:00.2]}
2... g6 {[%clk 0:03:00.5]} 3. Bg2 {[%clk 0:03:00.5]} 3... Bg7 {[%clk 0:03:01.4]}
4. O-O {[%clk 0:03:00.6]} 4... Nc6 {[%clk 0:03:01.7]} 5. c4 {[%clk 0:02:58.6]}
5... Nh6 {[%clk 0:03:01.3]} 6. Nc3 {[%clk 0:02:58.6]} 6... Nf5 {[%clk
0:03:01.9]} 7. Rb1 {[%clk 0:02:56.9]} 7... h5 {[%clk 0:03:01.6]} 8. h3 {[%clk
0:02:55.2]} 8... a6 {[%clk 0:03:00.2]} 9. a3 {[%clk 0:02:55.3]} 9... Rb8 {[%clk
0:02:59.8]} 10. b4 {[%clk 0:02:55.7]} 10... cxb4 {[%clk 0:03:00.7]} 11. axb4
{[%clk 0:02:56.2]} 11... b5 {[%clk 0:03:00.7]} 12. c5 {[%clk 0:02:50]} 12... a5
{[%clk 0:03:00.3]} 13. bxa5 {[%clk 0:02:47.9]} 13... Qxa5 {[%clk 0:02:53.9]} 14.
Qb3 {[%clk 0:02:36.5]} 14... b4 {[%clk 0:02:09.1]} 15. Ne4 {[%clk 0:01:44.9]}
15... Ncd4 {[%clk 0:02:05.7]} 16. Nxd4 {[%clk 0:01:45.2]} 16... Nxd4 {[%clk
0:02:06.5]} 17. Qe3 {[%clk 0:01:45]} 17... O-O {[%clk 0:02:02.8]} 18. Bb2 {[%clk
0:01:40.1]} 18... e5 {[%clk 0:01:52.7]} 19. Bxd4 {[%clk 0:01:19.5]} 19... exd4
{[%clk 0:01:53.6]} 20. Qf4 {[%clk 0:01:20.2]} 20... Bb7 {[%clk 0:01:15.9]} 21.
Rfc1 {[%clk 0:01:03.9]} 21... Bxe4 {[%clk 0:01:04.7]} 22. Bxe4 {[%clk
0:01:04.8]} 22... b3 {[%clk 0:01:05]} 23. Qd6 {[%clk 0:01:01.3]} 23... Qxd2
{[%clk 0:00:50.6]} 24. Bd3 {[%clk 0:00:54.5]} 24... Rfd8 {[%clk 0:00:27.8]} 25.
Bc4 {[%clk 0:00:52.9]} 25... b2 {[%clk 0:00:22.1]} 26. Rd1 {[%clk 0:00:53.3]}
26... Qg5 {[%clk 0:00:17.6]} 27. h4 {[%clk 0:00:33.1]} 27... Qf5 {[%clk
0:00:15.9]} 28. Bd3 {[%clk 0:00:27.1]} 28... Qe5 {[%clk 0:00:14.7]} 29. Rd2
{[%clk 0:00:19.9]} 29... Rdc8 {[%clk 0:00:10.5]} 30. Rdxb2 {[%clk 0:00:16]}
30... Rxb2 {[%clk 0:00:11.3]} 31. Rxb2 {[%clk 0:00:16.9]} 31... Qxc5 {[%clk
0:00:11.2]} 32. Qxc5 {[%clk 0:00:07.3]} 32... Rxc5 {[%clk 0:00:12.1]} 33. Rb7
{[%clk 0:00:07.2]} 33... d5 {[%clk 0:00:10.9]} 34. Kg2 {[%clk 0:00:04]} 34...
Bf6 {[%clk 0:00:10.2]} 35. Rd7 {[%clk 0:00:02.9]} 35... Kg7 {[%clk 0:00:09.8]}
36. Kf3 {[%clk 0:00:02.9]} 36... Ra5 {[%clk 0:00:09.6]} 37. Rc7 {[%clk
0:00:02.4]} 37... Kf8 {[%clk 0:00:08.2]} 38. Rb7 {[%clk 0:00:02.8]} 38... Rc5
{[%clk 0:00:07.3]} 39. Kg2 {[%clk 0:00:03.2]} 39... Kg7 {[%clk 0:00:07.7]} 40.
Kh3 {[%clk 0:00:03.7]} 40... Kf8 {[%clk 0:00:07.8]} 41. g4 {[%clk 0:00:04.3]}
41... hxg4+ {[%clk 0:00:07.2]} 42. Kxg4 {[%clk 0:00:05.2]} 42... Kg7 {[%clk
0:00:07.6]} 43. h5 {[%clk 0:00:05.7]} 43... gxh5+ {[%clk 0:00:08.4]} 44. Kxh5
{[%clk 0:00:06.4]} 44... Ra5 {[%clk 0:00:08.1]} 45. Kg4 {[%clk 0:00:06.9]} 45...
Rc5 {[%clk 0:00:08.1]} 46. Kf5 {[%clk 0:00:07]} 46... Ra5 {[%clk 0:00:07.7]} 47.
Rd7 {[%clk 0:00:07.3]} 47... Rc5 {[%clk 0:00:07.4]} 48. Rd6 {[%clk 0:00:06.7]}
48... Be7 {[%clk 0:00:05.7]} 49. Ra6 {[%clk 0:00:06.5]} 49... Rc7 {[%clk
0:00:03.2]} 50. Ke5 {[%clk 0:00:05.7]} 50... Rd7 {[%clk 0:00:03.1]} 51. Kxd4
{[%clk 0:00:04.5]} 51... Bf6+ {[%clk 0:00:03.2]} 52. Ke3 {[%clk 0:00:04.9]}
52... d4+ {[%clk 0:00:03.6]} 53. Ke4 {[%clk 0:00:05]} 53... Re7+ {[%clk
0:00:04.5]} 54. Kf5 {[%clk 0:00:05.2]} 54... Re5+ {[%clk 0:00:04.3]} 55. Kf4
{[%clk 0:00:05.2]} 55... Rc5 {[%clk 0:00:04.2]} 56. Ra7 {[%clk 0:00:02.7]} 56...
Bg5+ {[%clk 0:00:03.2]} 57. Kg4 {[%clk 0:00:02.8]} 57... Bf6 {[%clk 0:00:03.6]}
58. Rd7 {[%clk 0:00:03.1]} 58... Rg5+ {[%clk 0:00:03.4]} 59. Kf4 {[%clk
0:00:03.3]} 59... Rc5 {[%clk 0:00:04]} 60. Ke4 {[%clk 0:00:03.6]} 60... Rc8
{[%clk 0:00:03.7]} 61. Rb7 {[%clk 0:00:03.1]} 61... Re8+ {[%clk 0:00:03.5]} 62.
Kf3 {[%clk 0:00:03.8]} 62... Rc8 {[%clk 0:00:03.7]} 63. Kg2 {[%clk 0:00:03.9]}
63... Rc5 {[%clk 0:00:03.7]} 64. Kf3 {[%clk 0:00:03]} 64... Rc8 {[%clk
0:00:03.6]} 65. Be4 {[%clk 0:00:03.2]} 65... Rc5 {[%clk 0:00:03.2]} 66. Bb1
{[%clk 0:00:02.4]} 66... Rc3+ {[%clk 0:00:03.2]} 67. Ke4 {[%clk 0:00:02.2]}
67... Ra3 {[%clk 0:00:03.3]} 68. Bd3 {[%clk 0:00:02.1]} 68... Ra5 {[%clk
0:00:03.1]} 69. Bc4 {[%clk 0:00:02]} 69... Re5+ {[%clk 0:00:03.3]} 70. Kd3
{[%clk 0:00:01.8]} 70... Re7 {[%clk 0:00:04.2]} 71. Rb6 {[%clk 0:00:01.7]} 71...
Rd7 {[%clk 0:00:03.7]} 72. Rb5 {[%clk 0:00:01.6]} 72... Rd8 {[%clk 0:00:03.7]}
73. Bd5 {[%clk 0:00:02.2]} 73... Rd7 {[%clk 0:00:03.6]} 74. Be4 {[%clk
0:00:02.7]} 74... Re7 {[%clk 0:00:03.6]} 75. Bd5 {[%clk 0:00:02.5]} 75... Rc7
{[%clk 0:00:03.6]} 76. Ra5 {[%clk 0:00:03.3]} 76... Rc3+ {[%clk 0:00:03.6]} 77.
Ke4 {[%clk 0:00:03.5]} 77... Rc7 {[%clk 0:00:04.4]} 78. Ra4 {[%clk 0:00:03.2]}
78... Re7+ {[%clk 0:00:04.5]} 79. Kf3 {[%clk 0:00:03.9]} 79... Rc7 {[%clk
0:00:04.4]} 80. Be4 {[%clk 0:00:04.3]} 80... Rd7 {[%clk 0:00:04.4]} 81. Bd3
{[%clk 0:00:04.6]} 81... Rc7 {[%clk 0:00:04.6]} 82. Ra6 {[%clk 0:00:04.8]} 82...
Re7 {[%clk 0:00:04.6]} 83. Kf4 {[%clk 0:00:05.2]} 83... Rc7 {[%clk 0:00:04.8]}
84. Ra5 {[%clk 0:00:03.8]} 84... Re7 {[%clk 0:00:04.4]} 85. Kg3 {[%clk
0:00:04.1]} 85... Rc7 {[%clk 0:00:04.3]} 86. Rd5 {[%clk 0:00:04.3]} 86... Re7
{[%clk 0:00:04.3]} 87. Kg2 {[%clk 0:00:03.7]} 87... Rc7 {[%clk 0:00:04.1]} 88.
Rb5 {[%clk 0:00:03.9]} 88... Re7 {[%clk 0:00:04]} 89. Rc5 {[%clk 0:00:04.5]}
89... Rd7 {[%clk 0:00:04.1]} 90. Rc6 {[%clk 0:00:04.6]} 90... Re7 {[%clk
0:00:04.4]} 91. Bc4 {[%clk 0:00:04.9]} 91... Rd7 {[%clk 0:00:04.4]} 92. Kf3
{[%clk 0:00:05]} 92... Re7 {[%clk 0:00:04.7]} 93. Rc8 {[%clk 0:00:05]} 93... Rd7
{[%clk 0:00:04.7]} 94. Ke4 {[%clk 0:00:04.9]} 94... Re7+ {[%clk 0:00:04.8]} 95.
Kd3 {[%clk 0:00:05.4]} 95... Rd7 {[%clk 0:00:04.9]} 96. Rc5 {[%clk 0:00:05.2]}
96... Re7 {[%clk 0:00:04.9]} 97. Rf5 {[%clk 0:00:04.4]} 97... Ra7 {[%clk
0:00:04.7]} 98. Ke4 {[%clk 0:00:03.5]} 98... Re7+ {[%clk 0:00:04.5]} 99. Kf3
{[%clk 0:00:04.1]} 99... Rc7 {[%clk 0:00:04.5]} 100. Bd5 {[%clk 0:00:03.1]}
100... Re7 {[%clk 0:00:04.5]} 101. Be4 {[%clk 0:00:02.1]} 101... Re5 {[%clk
0:00:04.5]} 102. Rf4 {[%clk 0:00:01.7]} 102... Rg5 {[%clk 0:00:04.2]} 1/2-1/2

[Event "Late-Titled-Tuesday-Blitz-March-12-2024"]
[Site "Chess.com"]
[Date "2024.03.12"]
[Round "3"]
[White "EsmeraldasAnderson03"]
[Black "simaopdias"]
[Result "1-0"]
[WhiteElo "2576"]
[BlackElo "2261"]
[TimeControl "180+1"]
[EndTime "14:21:11 PDT"]
[Termination "EsmeraldasAnderson03 won by resignation"]

1. d4 {[%clk 0:03:00.9]} 1... Nf6 {[%clk 0:02:58.9]} 2. c4 {[%clk 0:03:01]} 2...
e5 {[%clk 0:02:58.9]} 3. dxe5 {[%clk 0:03:01]} 3... Ng4 {[%clk 0:02:59.3]} 4.
Nf3 {[%clk 0:03:01.9]} 4... Nc6 {[%clk 0:02:59.7]} 5. e3 {[%clk 0:03:02.6]} 5...
Ncxe5 {[%clk 0:02:57]} 6. Be2 {[%clk 0:03:03.2]} 6... Nxf3+ {[%clk 0:02:56.5]}
7. Bxf3 {[%clk 0:03:04.1]} 7... Ne5 {[%clk 0:02:56.8]} 8. Be2 {[%clk 0:03:04.8]}
8... Bb4+ {[%clk 0:02:55.8]} 9. Nd2 {[%clk 0:03:03.6]} 9... O-O {[%clk
0:02:55.8]} 10. O-O {[%clk 0:03:04.2]} 10... Bxd2 {[%clk 0:02:55.6]} 11. Bxd2
{[%clk 0:03:02.6]} 11... d6 {[%clk 0:02:56.5]} 12. Bc3 {[%clk 0:03:02.6]} 12...
Be6 {[%clk 0:02:56.9]} 13. b3 {[%clk 0:03:02.3]} 13... Nd7 {[%clk 0:02:56.5]}
14. Qd4 {[%clk 0:03:02.4]} 14... Nf6 {[%clk 0:02:56.6]} 15. Rfd1 {[%clk
0:03:01.2]} 15... Re8 {[%clk 0:02:54.5]} 16. Bf3 {[%clk 0:03:01.5]} 16... Rb8
{[%clk 0:02:53.1]} 17. Qxa7 {[%clk 0:03:00.7]} 17... Bg4 {[%clk 0:02:46]} 18.
Bxf6 {[%clk 0:02:58.4]} 18... Qxf6 {[%clk 0:02:45.6]} 19. Bxg4 {[%clk
0:02:58.7]} 1-0

[Event "Late-Titled-Tuesday-Blitz-March-12-2024"]
[Site "Chess.com"]
[Date "2024.03.12"]
[Round "3"]
[White "WhiteKnight2612"]
[Black "rdarruda"]
[Result "1-0"]
[WhiteElo "2850"]
[BlackElo "2549"]
[TimeControl "180+1"]
[EndTime "14:21:50 PDT"]
[Termination "WhiteKnight2612 won by resignation"]

1. e4 {[%clk 0:03:00.9]} 1... c5 {[%clk 0:02:57.7]} 2. Nf3 {[%clk 0:03:01.8]}
2... Nc6 {[%clk 0:02:57.3]} 3. d4 {[%clk 0:03:02.7]} 3... cxd4 {[%clk
0:02:57.5]} 4. Nxd4 {[%clk 0:03:03.6]} 4... e5 {[%clk 0:02:57.9]} 5. Nb5 {[%clk
0:03:04.2]} 5... a6 {[%clk 0:02:58.1]} 6. Nd6+ {[%clk 0:03:02.6]} 6... Bxd6
{[%clk 0:02:58.3]} 7. Qxd6 {[%clk 0:03:03]} 7... Qe7 {[%clk 0:02:59.2]} 8. Qd1
{[%clk 0:03:01.8]} 8... Nf6 {[%clk 0:02:58.4]} 9. Nc3 {[%clk 0:03:01.7]} 9... d6
{[%clk 0:02:58.5]} 10. Bg5 {[%clk 0:03:02.1]} 10... Be6 {[%clk 0:02:58.6]} 11.
Be2 {[%clk 0:03:01.1]} 11... O-O {[%clk 0:02:53.6]} 12. O-O {[%clk 0:03:01.2]}
12... Rfd8 {[%clk 0:02:53]} 13. f4 {[%clk 0:03:01.1]} 13... h6 {[%clk
0:02:36.5]} 14. Bxf6 {[%clk 0:02:58.3]} 14... Qxf6 {[%clk 0:02:37.4]} 15. f5
{[%clk 0:02:57.6]} 15... Bc8 {[%clk 0:02:36.5]} 16. Nd5 {[%clk 0:02:58.2]} 16...
Qg5 {[%clk 0:02:36.2]} 17. Rf3 {[%clk 0:02:58.2]} 17... Nd4 {[%clk 0:02:20.3]}
18. Rg3 {[%clk 0:02:57]} 18... Qh4 {[%clk 0:02:19.6]} 19. Rg4 {[%clk 0:02:57]}
1-0